bitfinex/quotes_ETHUSD_20250220
["timestamp","ask_amount","ask_price","bid_price","bid_amount"]
[1740060329994,3.62871,2755.8,2755.7,1e-05]
[1740060330413,4.354427,2755.8,2755.7,1e-05]
[1740060333227,6.745817,2755.8,2755.7,1e-05]
[1740060333439,8.86871,2755.8,2755.7,1e-05]
[1740060333847,3.62814,2756.3,2755.7,0.08254285]
[1740060334149,3.62835,2756.1,2755.8,1.0774]
[1740060334296,3.62835,2756.1,2755.8,1.15991869]
[1740060334752,5.24,2756.9,2755.8,4.98641456]
[1740060335039,3.628,2756.4,2755.8,1.15991869]
[1740060335213,3.62833,2756.1,2755.8,1.15991869]
[1740060335407,3.62808,2756.3,2755.8,1.15991869]
[1740060335611,3.62787,2756.5,2755.8,1.57591156]
[1740060335931,3.62766,2756.6,2755.9,3.62849]
[1740060336095,3.62761,2756.7,2755.9,3.62849]
[1740060336295,3.62772,2756.6,2756.0,3.71043959]
[1740060336533,3.62772,2756.6,2756.0,4.59367184]
[1740060336737,3.62754,2756.7,2756.1,3.62824]
[1740060336936,4.43698,2757.1,2756.4,3.62788]
[1740060337236,3.62708,2757.1,2756.6,3.62764]
[1740060337540,3.62691,2757.2,2756.7,0.8086]
[1740060337766,4.07076,2757.2,2756.7,0.89057117]
[1740060338120,0.44385,2757.2,2756.7,0.89057117]
[1740060338639,0.8117,2757.4,2756.7,0.89057117]
[1740060338846,3.6268,2757.3,2756.7,0.89057117]
[1740060339202,7.25364,2757.3,2756.7,4.51807117]
[1740060339398,3.6268,2757.3,2756.7,4.51807117]
[1740060339805,3.6268,2757.3,2756.8,3.62737]
[1740060340097,8.86654,2757.5,2756.8,3.62737]
[1740060340098,3.62663,2757.4,2756.9,0.89594407]
[1740060340304,3.62673,2757.3,2756.9,0.89594407]
[1740060340613,3.62673,2757.3,2756.9,0.08139995]
[1740060340797,3.62673,2757.3,2756.7,4.43611]
[1740060340997,3.62673,2757.3,2756.8,0.08140686]
[1740060341337,3.62673,2757.3,2756.7,4.43604]
[1740060341562,3.62673,2757.3,2756.9,0.08139995]
[1740060341765,3.62673,2757.3,2756.8,0.08140686]
[1740060342042,3.62673,2757.3,2756.9,0.08139995]
[1740060342399,7.25356,2757.3,2756.9,0.08139995]
[1740060342601,3.62691,2757.2,2756.9,0.08139995]
[1740060342831,3.62687,2757.2,2756.9,0.08139995]
[1740060343303,3.62687,2757.2,2756.7,4.43611]
[1740060343619,0.7942,2757.1,2756.6,5.32]
[1740060343923,3.62748,2756.8,2756.7,0.08141378]
[1740060344300,3.62763,2756.7,2756.3,1.0443]
[1740060344812,3.62792,2756.4,2756.0,0.7788]
[1740060345005,3.62825,2756.2,2755.9,0.281]
[1740060347646,3.62795,2756.4,2755.9,0.281]
[1740060348011,3.62809,2756.3,2755.9,3.281]
[1740060349955,3.62792,2756.4,2755.9,3.281]
[1740060350250,3.62813,2756.3,2755.9,3.281]
[1740060350452,3.62813,2756.3,2755.9,0.28]
[1740060352629,3.62805,2756.3,2755.9,0.28]
[1740060352952,3.62805,2756.3,2755.9,3.97489115]
[1740060353561,3.62805,2756.3,2755.9,0.34635115]
[1740060354060,3.62805,2756.3,2755.9,0.68050842]
[1740060354693,3.62823,2756.2,2755.9,0.68050842]
[1740060354966,3.62832,2756.1,2755.9,0.40050842]
[1740060355135,3.62823,2756.2,2756.0,0.279]
[1740060355566,3.62811,2756.3,2756.0,0.279]
[1740060356365,3.62818,2756.2,2756.0,0.279]
[1740060356958,3.62802,2756.4,2756.0,0.279]
[1740060357164,3.62812,2756.3,2756.0,0.279]
[1740060358567,3.62819,2756.2,2756.0,0.279]
[1740060358863,3.62811,2756.3,2756.1,0.07330172]
[1740060359571,3.62796,2756.4,2756.1,0.07330172]
[1740060360029,3.62798,2756.4,2756.1,0.07330172]
[1740060360397,3.62798,2756.4,2756.2,0.7881]
[1740060360540,8.86719,2757.0,2756.4,3.6278]
[1740060360742,3.62719,2757.0,2756.3,3.07330952]
[1740060360945,3.62765,2756.6,2756.5,0.07332457]
[1740060361158,3.62765,2756.6,2756.4,0.13956229]
[1740060361368,3.62721,2757.0,2756.5,0.13955297]
[1740060361958,3.62699,2757.1,2756.5,0.13955297]
[1740060362248,3.62722,2757.0,2756.5,3.76726297]
[1740060362648,0.7955,2757.5,2756.7,3.62745]
[1740060362843,3.62688,2757.2,2756.7,3.62745]
[1740060363144,3.62698,2757.2,2756.8,0.07319551]
[1740060363489,7.25459,2756.9,2756.7,0.279]
[1740060363643,4.352719,2756.9,2756.7,0.279]
[1740060363840,3.62726,2756.9,2756.7,0.279]
[1740060364875,3.62739,2756.8,2756.7,0.279]
[1740060365077,3.62752,2756.7,2756.6,0.0663343]
[1740060365280,3.62752,2756.7,2756.2,0.279]
[1740060365450,4.25031378,2756.7,2755.8,0.7579]
[1740060365652,3.62857,2755.9,2755.8,0.06635356]
[1740060366599,3.62871,2755.8,2755.7,1e-05]
[1740060367497,5.24,2755.9,2755.7,1e-05]
[1740060367782,5.24,2755.9,2755.7,3.62872]
[1740060367983,5.24,2755.9,2755.8,3.90871]
[1740060368497,5.24,2755.9,2755.8,0.28]
[1740060369286,3.62783,2756.5,2755.8,3.90871]
[1740060369448,3.62794,2756.4,2755.8,0.28]
[1740060369851,3.62757,2756.7,2756.0,3.62834]
[1740060370064,3.62757,2756.7,2756.0,7.25671]
[1740060370289,3.62757,2756.7,2756.1,3.62819]
[1740060370503,3.62734,2756.9,2756.3,3.62796]
[1740060370705,3.62734,2756.9,2756.2,3.62815]
[1740060370706,3.62705,2757.1,2756.4,4.39511]
[1740060371379,7.25415,2757.1,2756.4,4.39511]
[1740060371892,3.62705,2757.1,2756.4,4.39504]
[1740060372092,3.62705,2757.1,2756.5,3.62778]
[1740060372300,3.62716,2757.0,2756.4,0.7672]
[1740060372599,3.62705,2757.1,2756.4,4.395]
[1740060372766,3.62705,2757.1,2756.4,0.7672]
[1740060372966,0.8296,2757.3,2756.4,4.39508]
[1740060373169,1.79921,2757.3,2756.6,3.62759]
[1740060373368,6.62624,2757.7,2756.7,0.03627548]
[1740060373369,0.7766,2757.6,2756.7,0.03627548]
[1740060373702,7.25257,2757.7,2757.0,3.62706]
[1740060374010,3.62607,2757.8,2757.2,3.62686]
[1740060374320,3.62607,2757.8,2756.8,0.7976]
[1740060374321,4.43172,2758.2,2757.4,3.6266]
[1740060374456,8.86547,2758.3,2757.5,3.94164064]
[1740060374659,3.62547,2758.3,2757.7,3.62618]
[1740060374854,3.62536,2758.4,2757.8,0.8054]
[1740060375076,4.430902,2758.4,2757.8,4.49974237]
[1740060375404,4.430902,2758.4,2757.8,0.87371237]
[1740060375405,3.62575,2758.1,2757.8,0.87371237]
[1740060375605,3.62559,2758.2,2757.8,0.06831237]
[1740060375898,3.62559,2758.2,2757.6,9.70123]
[1740060376103,4.430952,2758.4,2757.9,0.06830546]
[1740060376285,8.056352,2758.4,2757.7,3.62613]
[1740060376608,3.62508,2758.6,2758.0,0.06829855]
[1740060376819,3.62508,2758.6,2758.1,0.06829164]
[1740060377016,3.62537,2758.4,2757.8,3.62607]
[1740060377214,3.62537,2758.4,2757.9,0.06708174]
[1740060377523,3.62502,2758.6,2757.9,3.69301174]
[1740060377822,0.005,2758.7,2758.2,3.62549]
[1740060377988,0.005,2758.7,2758.3,0.0670541]
[1740060378188,0.005,2758.7,2758.3,3.90538]
[1740060378509,0.005,2758.7,2758.4,0.0670472]
[1740060379089,3.62992,2758.7,2758.4,0.0670472]
[1740060379488,3.62515,2758.5,2758.4,0.0670472]
[1740060379891,4.40345,2758.5,2757.8,0.28]
[1740060380180,3.62562,2758.2,2757.9,0.06708174]
[1740060380598,3.6257,2758.1,2757.9,0.06708174]
[1740060381494,3.62558,2758.2,2757.9,0.06708174]
[1740060381693,3.62581,2758.0,2757.9,0.06708174]
[1740060382316,3.62558,2758.2,2757.9,0.06708174]
[1740060382708,3.62542,2758.3,2757.9,0.06708174]
[1740060383020,3.62555,2758.2,2757.9,0.06708174]
[1740060383718,3.62581,2758.0,2757.9,0.06708174]
[1740060384228,3.62568,2758.1,2757.9,0.06708174]
[1740060384383,3.62581,2758.0,2757.9,0.06708174]
[1740060385441,3.62568,2758.1,2757.9,0.06708174]
[1740060385582,3.62581,2758.0,2757.9,0.06708174]
[1740060385984,3.62609,2757.8,2757.6,1.0316]
[1740060386285,3.62621,2757.7,2757.6,0.279]
[1740060386485,3.62634,2757.6,2757.3,0.7537]
[1740060386810,3.62646,2757.6,2757.1,0.279]
[1740060387216,3.62622,2757.7,2757.1,0.279]
[1740060387388,3.62635,2757.6,2757.1,0.279]
[1740060387897,3.62621,2757.7,2757.2,3.62686]
[1740060388922,3.62621,2757.7,2757.3,0.06584195]
[1740060389431,3.62598,2757.9,2757.1,4.903872]
[1740060389629,3.62598,2757.9,2757.5,0.7904]
[1740060389986,3.62598,2757.9,2757.6,0.06582121]
[1740060390229,3.62621,2757.7,2757.6,0.06582121]
[1740060390386,3.62621,2757.7,2757.2,3.8063]
[1740060390732,3.62621,2757.7,2757.3,0.06598585]
[1740060390922,3.62621,2757.7,2757.2,12.75309]
[1740060391230,0.49478365,2758.1,2757.3,1.83167905]
[1740060391390,3.62569,2758.1,2757.3,1.83167905]
[1740060391817,3.62618,2757.8,2757.3,1.83167905]
[1740060392014,3.62618,2757.8,2757.3,5.45840905]
[1740060392429,0.7954,2758.2,2757.3,5.45840905]
[1740060392830,3.62576,2758.1,2757.3,1.83167905]
[1740060393031,3.62576,2758.1,2757.6,3.62633]
[1740060393237,3.62576,2758.1,2757.7,0.8431582]
[1740060393462,9.68848,2758.5,2757.7,0.8431582]
[1740060393757,7.251,2758.3,2757.7,4.4692982]
[1740060393918,3.62568,2758.1,2757.7,0.8431582]
[1740060394560,3.62531,2758.4,2757.8,0.03625793]
[1740060394715,3.62531,2758.4,2757.9,3.90288]
[1740060395057,3.62531,2758.4,2758.0,3.62578]
[1740060395263,3.62531,2758.4,2758.1,0.06593055]
[1740060395617,3.62517,2758.5,2758.2,0.7863]
[1740060395811,3.62509,2758.6,2758.3,0.06591674]
[1740060396011,3.62509,2758.6,2758.2,0.7863]
[1740060396244,3.62517,2758.5,2758.2,0.7863]
[1740060396453,3.62517,2758.5,2758.3,0.06591674]
[1740060396632,3.62509,2758.6,2758.3,0.06591674]
[1740060396967,3.62516,2758.5,2758.4,0.06590983]
[1740060397123,7.25022,2758.6,2758.4,0.06590983]
[1740060397318,0.005,2758.7,2758.2,0.7863]
[1740060397592,0.005,2758.7,2758.5,0.06590292]
[1740060397859,3.62998,2758.7,2758.3,0.441188]
[1740060398213,3.62507,2758.6,2758.4,0.06590983]
[1740060398617,3.62998,2758.7,2758.4,0.06590983]
[1740060399017,3.62506,2758.6,2758.4,0.06590983]
[1740060399239,3.62998,2758.7,2758.4,0.06590983]
[1740060399823,3.62511,2758.6,2758.4,0.06590983]
[1740060400230,3.62515,2758.5,2758.4,0.06590983]
[1740060400825,3.62515,2758.5,2758.2,0.7863]
[1740060401026,3.62515,2758.5,2758.3,0.06591674]
[1740060401327,3.62515,2758.5,2758.1,3.0]
[1740060401522,3.62545,2758.3,2758.1,3.0]
[1740060401758,3.62535,2758.4,2758.1,3.0]
[1740060402075,3.62543,2758.3,2758.1,3.0]
[1740060402557,3.62519,2758.5,2758.1,3.0]
[1740060402724,0.005,2758.7,2758.3,3.6254]
[1740060402929,3.62996,2758.7,2758.2,3.62555]
[1740060403154,3.62503,2758.6,2758.1,8.343404]
[1740060403364,3.62503,2758.6,2758.2,1.86930178]
[1740060403669,7.25015,2758.6,2758.2,1.86930178]
[1740060403850,3.62516,2758.5,2758.3,0.06591674]
[1740060404024,3.62503,2758.6,2758.2,1.86930178]
[1740060404425,3.62503,2758.6,2758.3,0.06548513]
[1740060404742,3.62503,2758.6,2758.1,6.62555]
[1740060404954,3.62503,2758.6,2758.4,0.06547822]
[1740060405151,3.62503,2758.6,2758.1,6.62555]
[1740060405354,0.005,2758.7,2758.5,3.69049131]
[1740060405563,0.005,2758.7,2758.3,3.6254]
[1740060405760,0.005,2758.7,2758.6,0.0654644]
[1740060405951,0.005,2758.7,2758.3,3.6254]
[1740060406148,0.005,2758.7,2758.6,0.0654644]
[1740060406357,0.005,2758.7,2758.6,0.7961]
[1740060406860,0.005,2758.7,2758.6,0.8615644]
[1740060408271,0.005,2758.7,2758.6,8.0365844]
[1740060409544,0.005,2758.7,2758.6,0.0654644]
[1740060409746,0.005,2758.7,2758.6,0.3414644]
[1740060409952,0.005,2758.7,2758.6,6.9664844]
[1740060410148,0.005,2758.7,2758.6,3.3414644]
[1740060410868,0.005,2758.7,2758.6,1.03812584]
[1740060411076,0.005,2758.7,2758.6,0.3414644]
[1740060411247,0.005,2758.7,2758.6,3.3414644]
[1740060411835,0.005,2758.7,2758.6,6.9664844]
[1740060412266,0.005,2758.7,2758.6,8.2828844]
[1740060412473,0.005,2758.7,2758.6,10.3442489]
[1740060416669,0.005,2758.7,2758.6,7.3442489]
[1740060417782,0.005,2758.7,2758.6,7.67734303]
[1740060418015,0.005,2758.7,2758.6,7.74362924]
[1740060418390,0.005,2758.7,2758.6,19.44926985]
[1740060420375,0.005,2759.3,2759.2,10.77616132]
[1740060421284,0.005,2759.3,2759.2,11.10925545]
[1740060423471,0.005,2759.3,2759.2,14.10925545]
[1740060424485,0.005,2759.3,2759.2,7.48502545]
[1740060424677,0.005,2759.3,2759.2,6.42002545]
[1740060425188,3.6291,2759.3,2759.2,5.78360245]
[1740060425493,3.6291,2759.3,2759.2,0.46360245]
[1740060425494,4.4298,2759.3,2759.2,0.46360245]
[1740060425722,4.4298,2759.3,2759.2,0.13050832]
[1740060426219,4.4298,2759.3,2759.2,0.06627179]
[1740060427326,0.005,2759.3,2759.2,0.06627179]
[1740060427524,0.005,2759.3,2759.2,0.43534697]
[1740060427701,0.005,2759.3,2759.2,4.94520285]
[1740060427887,0.005,2759.3,2759.2,10.81520285]
[1740060428084,0.005,2759.3,2759.2,10.7789645]
[1740060428510,0.005,2759.3,2759.2,5.8168345]
[1740060428732,3.6291,2759.3,2759.2,5.72275932]
[1740060429221,0.005,2759.3,2759.2,5.72275932]
[1740060432031,4.4506,2759.3,2759.2,0.12775932]
[1740060435841,4.4506,2759.3,2759.2,0.06627179]
[1740060436160,3.62514,2758.6,2758.5,0.274]
[1740060436363,0.005,2759.3,2758.6,0.8178]
[1740060436541,3.62457,2759.0,2758.7,0.0662838]
[1740060436730,3.62465,2758.9,2758.7,0.0662838]
[1740060437061,3.62476,2758.8,2758.7,0.0662838]
[1740060437363,7.24937,2758.9,2758.7,0.0662838]
[1740060437873,3.62476,2758.8,2758.7,0.0662838]
[1740060438772,3.62464,2758.9,2758.7,0.0662838]
[1740060439126,3.62476,2758.8,2758.7,0.0662838]
[1740060439323,3.62442,2759.1,2758.7,0.0662838]
[1740060439527,0.8257,2759.2,2758.7,0.93231218]
[1740060439785,3.62444,2759.1,2758.7,0.0662838]
[1740060439927,3.62458,2759.0,2758.7,0.0662838]
[1740060440576,0.005,2759.3,2759.0,3.0]
[1740060440793,3.62917,2759.3,2758.9,0.809]
[1740060440996,3.62917,2759.3,2759.0,0.3809]
[1740060441160,0.005,2759.3,2759.1,3.6243]
[1740060441516,0.005,2759.3,2759.2,6.69050179]
[1740060442002,0.005,2759.3,2759.2,7.24050179]
[1740060442206,0.005,2759.3,2759.2,9.55007273]
[1740060442358,0.005,2759.3,2759.2,9.51383603]
[1740060443384,0.005,2759.3,2759.2,9.84747608]
[1740060444204,0.005,2759.3,2759.2,9.51383603]
[1740060445507,0.005,2759.3,2759.2,9.84739281]
[1740060447401,1e-05,2759.3,2759.2,15.46739281]
[1740060447603,3.62242,2760.6,2760.2,3.0]
[1740060447915,0.8019,2760.7,2760.4,3.0]
[1740060448062,0.8019,2760.7,2760.4,3.06624298]
[1740060448517,4.40324,2761.0,2760.6,3.0]
[1740060448862,3.6221,2760.9,2760.7,0.0566269]
[1740060449066,4.40324,2761.0,2760.7,0.0566269]
[1740060449067,0.7813,2761.0,2760.7,0.0566269]
[1740060449217,0.7813,2761.0,2760.7,0.06623578]
[1740060449415,0.7813,2761.0,2760.8,0.05630433]
[1740060449615,0.7813,2761.0,2760.7,3.06623578]
[1740060449816,0.7813,2761.0,2760.9,0.05629744]
[1740060450013,1e-05,2761.1,2760.7,3.06623578]
[1740060450265,1e-05,2761.1,2761.0,10.55751061]
[1740060450463,1e-05,2761.1,2761.0,7.0018692]
[1740060450688,1e-05,2761.1,2761.0,8.12620625]
[1740060450976,3.62175,2761.1,2761.0,4.57620625]
[1740060451172,0.75341,2761.1,2761.0,4.57620625]
[1740060451338,1e-05,2761.1,2761.0,4.57620625]
[1740060451881,1e-05,2761.1,2761.0,8.12620625]
[1740060452076,1e-05,2761.1,2761.0,12.89530487]
[1740060452370,1e-05,2761.1,2761.0,9.27343487]
[1740060452570,1e-05,2761.1,2761.0,7.57620625]
[1740060452939,4.39125,2761.1,2761.0,4.85020625]
[1740060454069,4.39125,2761.1,2761.0,4.57620625]
[1740060456728,4.39125,2761.1,2761.0,4.50997766]
[1740060456926,4.39125,2761.1,2761.0,4.45414609]
[1740060457124,5.53111006,2761.1,2761.0,4.45414609]
[1740060458026,5.53111006,2761.1,2761.0,6.09e-06]
[1740060461040,1.13987006,2761.1,2760.1,0.06625018]
[1740060461240,4.41202,2760.2,2760.1,0.06625018]
[1740060463771,3.62292,2760.2,2760.1,0.11866577]
[1740060467352,0.8244,2760.6,2760.1,0.11866577]
[1740060467573,3.62253,2760.5,2760.1,0.11866577]
[1740060467771,3.62288,2760.3,2760.1,0.11866577]
[1740060468285,3.62262,2760.5,2760.1,0.11866577]
[1740060468470,3.62275,2760.4,2760.1,0.11866577]
[1740060468674,3.62269,2760.4,2760.1,0.11866577]
[1740060468842,3.62263,2760.5,2760.2,0.55]
[1740060469048,3.62263,2760.5,2760.3,0.06624538]
[1740060469287,3.62263,2760.5,2760.3,0.11998105]
[1740060469583,0.7698,2760.8,2760.3,0.11998105]
[1740060469747,3.62266,2760.4,2760.3,0.11998105]
[1740060470343,4.347183,2760.4,2760.3,0.11998105]
[1740060470882,5.152883,2760.4,2760.3,0.11998105]
[1740060473585,5.152883,2760.4,2760.3,5.67e-06]
[1740060473748,5.152883,2760.4,2760.3,9.14e-06]
[1740060473946,0.7672,2760.3,2759.1,5.32]
[1740060474147,0.7672,2760.3,2758.9,1.0417]
[1740060474148,3.6241,2759.3,2758.9,1.0417]
[1740060474662,3.6241,2759.3,2758.9,0.273]
[1740060475363,3.62398,2759.4,2758.9,0.273]
[1740060475563,3.62365,2759.7,2759.2,3.12926007]
[1740060475814,3.62365,2759.7,2759.3,3.0]
[1740060475965,3.62328,2760.0,2759.4,3.62385]
[1740060476305,3.62345,2759.8,2759.4,0.55]
[1740060476603,3.62345,2759.8,2759.4,0.61626699]
[1740060476965,3.62373,2759.6,2759.4,0.61626699]
[1740060477468,3.62326,2760.0,2759.5,1.27932502]
[1740060477819,3.62345,2759.8,2759.5,0.8195]
[1740060478020,3.62334,2759.9,2759.5,0.8195]
[1740060478355,3.62358,2759.7,2759.6,0.06626219]
[1740060478462,5.162285,2759.7,2759.6,0.06626219]
[1740060479583,3.62347,2759.8,2759.6,0.06626219]
[1740060480110,3.62358,2759.7,2759.6,0.06626219]
[1740060480296,3.62327,2760.0,2759.6,0.06626219]
[1740060480697,3.62301,2760.2,2759.8,0.8202]
[1740060481188,3.62273,2760.4,2759.9,0.04870851]
[1740060481397,3.62294,2760.2,2759.9,0.04870851]
[1740060481712,3.62318,2760.0,2759.9,0.04870851]
[1740060482097,3.62337,2759.9,2759.6,0.06626219]
[1740060482481,3.62305,2760.1,2759.7,0.04862904]
[1740060482686,3.62305,2760.1,2759.8,3.0]
[1740060483008,3.62285,2760.3,2759.9,0.04861524]
[1740060483193,3.623,2760.2,2759.7,0.55]
[1740060483508,3.623,2760.2,2760.0,0.04860834]
[1740060483807,3.62315,2760.1,2759.8,0.06625738]
[1740060484368,3.62319,2760.0,2759.8,0.06625738]
[1740060485600,3.62309,2760.1,2759.8,0.06625738]
[1740060486753,3.62326,2760.0,2759.8,0.06625738]
[1740060486938,7.24621,2760.1,2759.8,0.06625738]
[1740060487438,3.62305,2760.1,2759.8,0.06625738]
[1740060487652,0.7793,2760.9,2760.0,4.20764061]
[1740060487813,0.77931,2761.1,2760.4,3.0]
[1740060488013,3.62221,2760.8,2760.5,0.822]
[1740060488324,3.62228,2760.7,2760.5,0.822]
[1740060489352,3.62183,2761.1,2760.5,0.822]
[1740060489513,1e-05,2761.1,2760.7,3.0]
[1740060490032,1e-05,2761.1,2760.7,6.62223]
[1740060490433,1e-05,2761.1,2760.9,3.0]
[1740060490632,1e-05,2761.1,2761.0,0.8005]
[1740060490834,1e-05,2761.1,2761.0,1.0725]
[1740060492468,3.62175,2761.1,2761.0,1.0725]
[1740060493176,1e-05,2761.1,2761.0,1.0725]
[1740060493739,1e-05,2761.1,2761.0,0.32015911]
[1740060493740,3.62175,2761.1,2761.0,0.32015911]
[1740060493935,5.140787,2761.1,2761.0,0.04815911]
[1740060494139,5.140787,2761.1,2760.7,0.272]
[1740060494465,7.24437,2760.8,2760.6,0.06623818]
[1740060494775,3.62226,2760.7,2760.6,0.06623818]
[1740060495152,7.24436,2760.8,2760.6,0.06623818]
[1740060495378,3.62226,2760.7,2760.6,0.06623818]
[1740060495576,4.346699,2760.7,2760.6,0.06623818]
[1740060496982,5.166999,2760.7,2760.6,0.06623818]
[1740060498392,1e-05,2761.1,2760.7,3.62218]
[1740060498564,1e-05,2761.1,2760.9,0.55]
[1740060498766,1e-05,2761.1,2761.0,6.62187]
[1740060499270,1e-05,2761.1,2761.0,7.43897]
[1740060499800,1e-05,2761.1,2761.0,7.50519859]
[1740060499953,1e-05,2761.1,2761.0,8.64521845]
[1740060500158,1e-05,2761.1,2761.0,9.19521845]
[1740060501408,1e-05,2761.1,2761.0,18.10085906]
[1740060501705,2e-07,2761.6,2761.4,0.8046]
[1740060501852,2e-07,2761.8,2761.5,28.81310339]
[1740060502055,1e-07,2762.2,2762.1,7.44413]
[1740060502265,1e-07,2762.2,2762.1,28.92161343]
[1740060502466,1e-07,2762.2,2762.1,32.23083177]
[1740060503259,0.005,2763.4,2762.7,3.61964]
[1740060503458,0.005,2763.4,2762.7,11.14956844]
[1740060503702,0.005,2763.4,2762.7,29.30759539]
[1740060504262,0.005,2763.4,2762.7,29.03259539]
[1740060504463,0.005,2763.4,2762.7,32.29783393]
[1740060504744,0.005,2763.4,2762.7,32.57283393]
[1740060505003,3.62374,2763.4,2762.7,32.57283393]
[1740060505211,3.62374,2763.4,2762.7,28.95319393]
[1740060505366,3.61893,2763.3,2762.7,25.29255332]
[1740060505560,3.61908,2763.2,2762.7,25.56755332]
[1740060505875,3.61914,2763.1,2762.7,25.56755332]
[1740060506336,3.61893,2763.3,2762.7,25.56755332]
[1740060506459,3.61889,2763.3,2762.7,10.65255332]
[1740060506664,3.61922,2763.1,2762.7,7.66231478]
[1740060506959,3.61938,2762.9,2762.7,6.85921478]
[1740060507215,3.61938,2762.9,2762.7,6.58421478]
[1740060507796,3.61938,2762.9,2762.7,6.85921478]
[1740060507997,3.61934,2763.0,2762.7,6.85921478]
[1740060508170,4.37947,2763.1,2762.7,6.85921478]
[1740060508375,3.61917,2763.1,2762.7,6.85921478]
[1740060508599,3.61889,2763.3,2762.7,6.85921478]
[1740060508802,3.61889,2763.3,2762.7,7.4517047]
[1740060509004,3.62374,2763.4,2762.7,12.34851517]
[1740060509163,3.61886,2763.3,2762.7,12.34851517]
[1740060509861,0.005,2763.4,2762.7,12.34851517]
[1740060510098,3.62373,2763.4,2762.7,12.34851517]
[1740060510421,3.61894,2763.3,2762.7,12.34851517]
[1740060510560,3.619,2763.2,2762.7,8.72887517]
[1740060511402,3.61888,2763.3,2762.7,12.34851517]
[1740060511762,3.61899,2763.2,2762.7,12.34851517]
[1740060512213,3.62384,2763.4,2762.7,12.34851517]
[1740060512413,7.24267,2763.4,2762.7,12.34851517]
[1740060512586,3.61889,2763.3,2762.7,17.66851517]
[1740060513096,0.005,2763.4,2762.7,17.66851517]
[1740060513296,0.005,2763.4,2762.7,18.65481517]
[1740060513500,0.005,2763.4,2762.7,18.45481517]
[1740060514214,0.005,2763.4,2762.7,22.68446427]
[1740060515988,0.005,2763.4,2762.8,4.3363]
[1740060516176,3.61673,2765.0,2764.4,4.40364]
[1740060516371,0.1,2766.0,2764.4,4.40364]
[1740060516372,3.61531,2766.1,2765.4,3.61608]
[1740060516690,3.61531,2766.1,2764.7,4.2306491]
[1740060516691,0.8108,2766.8,2765.9,4.2306491]
[1740060517007,0.15435692,2766.9,2766.3,3.61493]
[1740060517207,0.15435692,2766.9,2766.0,6.27732817]
[1740060517208,0.81956188,2767.7,2767.3,3.61356]
[1740060517373,0.0998199,2767.7,2767.4,0.06607542]
[1740060517572,9.9e-06,2768.4,2767.5,0.86044388]
[1740060517773,0.8712,2768.9,2767.5,0.86044388]
[1740060518005,0.207,2768.1,2767.6,0.06607065]
[1740060518403,3.6131,2767.7,2767.6,0.06607065]
[1740060518679,3.6131,2767.7,2767.6,6.5e-07]
[1740060518914,3.6143,2766.8,2766.6,4.76558451]
[1740060519242,3.61441,2766.7,2766.6,4.76558451]
[1740060519391,3.61441,2766.7,2766.6,4.66699531]
[1740060519915,4.4233,2766.8,2766.6,4.66699531]
[1740060520117,0.44233,2766.7,2766.6,4.66699531]
[1740060520306,3.61441,2766.7,2766.6,4.66699531]
[1740060520888,3.61441,2766.7,2766.6,5.31e-06]
[1740060521088,3.61507,2766.2,2765.3,0.329]
[1740060521289,4.2306491,2766.7,2765.3,0.329]
[1740060521491,3.61611,2765.4,2765.3,0.329]
[1740060521876,3.61605,2765.5,2764.9,0.7758]
[1740060522078,3.61625,2765.3,2764.9,0.7758]
[1740060522278,3.61616,2765.4,2764.6,0.329]
[1740060522480,0.7733,2765.8,2764.6,0.329]
[1740060522688,0.7733,2765.8,2764.4,0.7888]
[1740060522689,3.61625,2765.3,2764.4,0.7888]
[1740060522889,3.61659,2765.1,2764.4,0.7888]
[1740060523120,3.61667,2765.0,2764.4,0.7888]
[1740060523281,3.61651,2765.1,2764.4,0.7888]
[1740060523481,3.977885,2765.3,2764.4,0.7888]
[1740060523681,3.61626,2765.3,2764.4,1.1188]
[1740060523927,3.6164,2765.2,2764.4,0.7888]
[1740060524593,3.61573,2765.7,2764.8,3.61687]
[1740060524792,3.61584,2765.7,2764.8,0.78475191]
[1740060525000,3.61588,2765.6,2764.8,0.78475191]
[1740060525510,3.61588,2765.6,2764.7,3.0]
[1740060525708,3.61588,2765.6,2764.4,9.5588]
[1740060526017,3.61639,2765.2,2764.5,3.0]
[1740060526397,3.61508,2766.2,2764.6,4.26681469]
[1740060526598,3.61521,2766.1,2765.2,3.61635]
[1740060526925,0.361521,2766.0,2765.1,3.0]
[1740060527080,3.61551,2765.9,2765.1,3.0]
[1740060527285,0.791,2766.3,2765.1,3.0]
[1740060527286,3.61568,2765.8,2765.1,3.0]
[1740060527492,3.61551,2765.9,2765.1,6.61644]
[1740060527712,0.361551,2765.8,2765.1,6.61644]
[1740060527917,0.361551,2765.8,2764.4,0.7888]
[1740060527918,0.361551,2765.8,2764.9,3.0]
[1740060528098,3.61621,2765.4,2764.6,3.6171]
[1740060528801,3.61621,2765.4,2764.7,3.61701]
[1740060529541,3.61613,2765.4,2764.8,3.0]
[1740060529706,0.791,2766.3,2765.1,3.0]
[1740060529900,0.50396491,2766.6,2766.0,3.61525]
[1740060530100,4.39121,2766.8,2766.0,3.61525]
[1740060530401,0.7769,2766.8,2766.3,3.61483]
[1740060530627,3.61416,2766.9,2766.2,3.0]
[1740060530794,3.61391,2767.1,2766.3,0.03614473]
[1740060530995,0.361391,2767.0,2766.3,0.03614473]
[1740060531216,0.7769,2767.3,2766.3,0.8088]
[1740060531533,3.6135,2767.4,2766.6,3.61453]
[1740060531937,3.97455,2767.6,2766.8,3.61426]
[1740060532111,0.397455,2767.5,2767.1,3.6138]
[1740060532288,0.36131,2767.6,2767.2,0.03613461]
[1740060532628,3.61299,2767.8,2766.9,3.0]